bitfinex/quotes_SOLUSD_20250811
["timestamp","ask_amount","ask_price","bid_price","bid_amount"]
[1754900158639,20.68696177,183.23,183.2,38.64]
[1754900158842,15.10621557,183.21,183.18,0.7]
[1754900159042,15.10621557,183.21,183.19,38.64]
[1754900160335,15.10621557,183.21,183.15,0.7]
[1754900160336,15.10621557,183.19,183.15,0.7]
[1754900160553,20.00475908,183.19,183.16,38.64]
[1754900160729,15.10621557,183.19,183.16,39.34]
[1754900160929,25.46377095,183.19,183.17,38.64]
[1754900161449,20.56522744,183.19,183.17,38.64]
[1754900161657,20.56522744,183.19,183.18,0.7]
[1754900161839,20.56522744,183.19,183.17,38.64]
[1754900162036,20.56522744,183.19,183.17,39.34]
[1754900162244,20.56522744,183.19,183.17,38.64]
[1754900162445,15.10621557,183.19,183.18,0.7]
[1754900162934,5.45881325,183.19,183.18,0.7]
[1754900163536,5.45881325,183.19,183.17,38.64]
[1754900163948,5.45881325,183.19,183.17,39.34]
[1754900164153,5.45881325,183.19,183.18,4.89854351]
[1754900164357,5.45881325,183.19,183.18,5.59854351]
[1754900164547,5.45881325,183.19,183.18,0.7]
[1754900164746,5.45881325,183.19,183.18,5.59854351]
[1754900165065,5.45857482,183.2,183.18,5.59854351]
[1754900165942,5.45857482,183.2,183.18,0.7]
[1754900167065,5.45857482,183.2,183.18,5.59854351]
[1754900168068,5.45857482,183.2,183.19,4.89854351]
[1754900168245,13.6447986,183.22,183.19,44.21854351]
[1754900168246,15.10621557,183.22,183.19,44.21854351]
[1754900168453,15.7884555,183.22,183.19,44.21854351]
[1754900168768,15.7884555,183.22,183.19,43.51854351]
[1754900168943,15.7884555,183.22,183.19,38.62]
[1754900169766,15.10621557,183.2,183.19,38.62]
[1754900170866,15.10621557,183.2,183.18,4.89854351]
[1754900170867,11.0393732,183.2,183.17,38.62]
[1754900171069,11.1593732,183.2,183.17,38.62]
[1754900171475,11.0393732,183.2,183.17,38.62]
[1754900171653,11.0393732,183.2,183.17,39.32]
[1754900171860,6.14082969,183.2,183.17,38.62]
[1754900172073,11.0393732,183.2,183.17,38.62]
[1754900173348,15.10621557,183.19,183.18,0.7]
[1754900173847,15.10621557,183.19,183.17,38.62]
[1754900174051,15.78856722,183.19,183.17,39.32]
[1754900174469,15.78856722,183.19,183.18,0.7]
[1754900174776,15.78856722,183.19,183.17,38.62]
[1754900174968,15.78856722,183.19,183.17,39.32]
[1754900175459,20.56532682,183.18,183.17,39.32]
[1754900176262,15.10621557,183.18,183.17,39.32]
[1754900176670,15.10621557,183.18,183.17,44.21854351]
[1754900178068,15.10621557,183.18,183.17,49.6779528]
[1754900186966,0.03,183.23,183.17,49.6779528]
[1754900187281,15.13621557,183.23,183.22,4.89854351]
[1754900187580,15.13621557,183.23,183.18,0.67]
[1754900187581,25.61245701,183.23,183.21,38.6]
[1754900187888,15.9084555,183.22,183.21,38.6]
[1754900188073,15.7884555,183.22,183.21,38.6]
[1754900188382,15.10621557,183.21,183.2,38.6]
[1754900188577,0.68223993,183.22,183.2,43.49854351]
[1754900190277,0.68223993,183.22,183.2,44.16854351]
[1754900191669,0.03,183.23,183.21,5.56854351]
[1754900191862,15.13621557,183.23,183.22,43.49854351]
[1754900192057,15.13621557,183.23,183.22,38.6]
[1754900193276,15.13621557,183.23,183.22,39.27]
[1754900193670,15.13621557,183.23,183.22,38.6]
[1754900195876,0.03,183.23,183.22,44.16854351]
[1754900196395,15.13621557,183.23,183.22,44.16854351]
[1754900196702,0.03,183.23,183.22,39.27]
[1754900196899,0.03,183.23,183.22,38.6]
[1754900198191,0.03,183.23,183.22,39.27]
[1754900199002,0.03,183.23,183.22,38.6]
[1754900199380,0.03,183.23,183.22,39.27]
[1754900199591,0.03,183.23,183.22,44.16854351]
[1754900202501,0.03,183.23,183.22,38.6]
[1754900203233,0.03,183.23,183.22,39.27]
[1754900203905,0.03,183.23,183.22,38.6]
[1754900204910,0.03,183.23,183.22,39.27]
[1754900205303,0.03,183.23,183.22,38.6]
[1754900205500,15.10621557,183.22,183.18,0.67]
[1754900205812,15.10621557,183.22,183.19,38.58]
[1754900205813,15.10621557,183.2,183.19,38.58]
[1754900206024,15.13621557,183.23,183.19,44.14854351]
[1754900206228,0.68223993,183.22,183.19,44.14854351]
[1754900206532,15.10621557,183.21,183.2,0.67]
[1754900206739,15.10621557,183.21,183.2,5.56854351]
[1754900206937,0.03,183.23,183.2,5.56854351]
[1754900207106,20.56413501,183.22,183.21,43.47854351]
[1754900207432,20.56413501,183.22,183.21,39.25]
[1754900208013,15.10621557,183.22,183.21,44.14854351]
[1754900209246,15.10621557,183.22,183.21,49.60676085]
[1754900210006,0.03,183.23,183.21,49.60676085]
[1754900210205,0.03,183.23,183.22,4.89854351]
[1754900210399,0.03,183.23,183.22,5.56854351]
[1754900211142,0.03,183.23,183.22,0.67]
[1754900211444,0.03,183.23,183.22,5.56854351]
[1754900216618,0.03,183.23,183.22,11.02646295]
[1754900219821,0.03,183.23,183.22,37.02646295]
[1754900220324,0.03,183.23,183.22,75.58646295]
[1754900222828,0.03,183.23,183.22,31.56854351]
[1754900223028,0.03,183.23,183.22,70.12854351]
[1754900223940,0.03,183.23,183.22,44.12854351]
[1754900224957,0.03,183.23,183.2,26.69]
[1754900225156,0.03,183.23,183.22,4.89854351]
[1754900225572,0.03,183.23,183.21,38.56]
[1754900226425,20.68413501,183.22,183.21,38.56]
[1754900226651,20.68413501,183.22,183.18,0.06]
[1754900226652,15.10621557,183.21,183.18,0.06]
[1754900226861,20.12475908,183.21,183.19,38.56]
[1754900227551,15.22621557,183.21,183.19,38.56]
[1754900228325,5.45851528,183.2,183.19,38.56]
[1754900228525,20.56473085,183.2,183.19,38.56]
[1754900229762,15.10621557,183.19,183.18,0.06]
[1754900229933,15.10621557,183.19,183.18,38.62]
[1754900229934,15.78856722,183.19,183.18,38.62]
[1754900230134,5.01854351,183.19,183.18,0.06]
[1754900230641,11.0393732,183.2,183.18,0.06]
[1754900230859,11.1593732,183.2,183.18,0.06]
[1754900231231,5.01854351,183.19,183.18,0.06]
[1754900231934,10.47735676,183.19,183.18,0.06]
[1754900232143,11.15970841,183.19,183.18,0.06]
[1754900233149,10.47735676,183.19,183.18,0.06]
[1754900233364,6.1411649,183.19,183.18,0.06]
[1754900235262,20.56473085,183.2,183.18,0.06]
[1754900235560,5.58089516,183.19,183.18,0.06]
[1754900235754,0.68235165,183.19,183.18,0.06]
[1754900235935,20.56473085,183.2,183.18,0.75]
[1754900235936,15.10621557,183.2,183.18,0.75]
[1754900236135,15.10621557,183.2,183.19,4.89854351]
[1754900236342,15.10621557,183.2,183.19,0.69]
[1754900236551,15.10621557,183.2,183.19,5.58854351]
[1754900237356,20.56473085,183.2,183.19,5.58854351]
[1754900237973,15.10621557,183.2,183.19,5.58854351]
[1754900238473,0.03,183.23,183.19,11.04732597]
[1754900238674,0.03,183.23,183.22,4.89854351]
[1754900239049,0.03,183.23,183.22,5.58854351]
[1754900240347,0.03,183.23,183.22,4.89854351]
[1754900240547,0.03,183.23,183.21,4.89854351]
[1754900240769,15.10621557,183.22,183.18,5.64854351]
[1754900240985,20.00475908,183.22,183.19,38.56]
[1754900241157,15.10621557,183.22,183.19,44.14854351]
[1754900241349,20.56438394,183.22,183.2,4.89854351]
[1754900241543,20.56438394,183.22,183.21,5.58854351]
[1754900241775,0.03,183.23,183.21,4.89854351]
[1754900241954,0.03,183.23,183.22,5.58854351]
[1754900244464,0.03,183.23,183.22,11.04646295]
[1754900245161,0.03,183.23,183.22,5.58854351]
[1754900246176,0.03,183.23,183.22,11.04646295]
[1754900247576,0.03,183.23,183.22,49.58646295]
[1754900247879,0.03,183.23,183.22,44.12854351]
[1754900249464,0.03,183.23,183.22,44.68791944]
[1754900249692,0.03,183.23,183.22,49.58646295]
[1754900250450,0.03,183.23,183.22,44.12854351]
[1754900252659,0.03,183.23,183.22,49.58646295]
[1754900252988,0.03,183.23,183.22,44.12854351]
[1754900253956,0.03,183.23,183.22,49.58646295]
[1754900257388,0.03,183.23,183.22,124.98646295]
[1754900257581,0.03,183.24,183.23,32.96248827]
[1754900257753,0.03,183.24,183.23,113.26103178]
[1754900257952,0.03,183.24,183.23,113.97103178]
[1754900258248,0.03,183.26,183.25,26.0]
[1754900258476,0.03,183.26,183.25,69.43854351]
[1754900258872,0.03,183.26,183.25,70.14854351]
[1754900259498,0.03,183.26,183.25,75.60556943]
[1754900263071,0.03,183.26,183.25,151.00556943]
[1754900266075,0.03,183.26,183.25,146.10702592]
[1754900266271,0.03,183.26,183.25,151.00556943]
[1754900267272,0.03,183.26,183.25,112.46556943]
[1754900267470,0.03,183.26,183.25,150.98556943]
[1754900269196,0.03,183.26,183.25,153.16915443]
[1754900270000,0.03,183.26,183.25,150.98556943]
[1754900270198,0.03,183.26,183.25,107.00854351]
[1754900270401,0.03,183.26,183.25,80.29854351]
[1754900270607,0.03,183.26,183.25,118.81854351]
[1754900271281,0.03,183.26,183.25,119.52854351]
[1754900271482,0.03,183.26,183.25,124.98556943]
[1754900272312,0.03,183.32,183.28,26.0]
[1754900272519,0.03,183.32,183.31,4.89854351]
[1754900272679,0.03,183.32,183.31,38.52]
[1754900272880,15.31621557,183.32,183.31,38.52]
[1754900273082,15.13621557,183.32,183.31,38.52]
[1754900273317,15.31621557,183.32,183.31,38.52]
[1754900274221,5.66494217,183.32,183.31,38.52]
[1754900274897,10.56348568,183.32,183.3,38.5]
[1754900275091,15.10621557,183.3,183.26,4.89854351]
[1754900275298,15.10621557,183.28,183.27,38.5]
[1754900275492,15.28621557,183.28,183.27,38.5]
[1754900276489,20.74234826,183.28,183.22,26.69]
[1754900276808,15.10621557,183.26,183.23,38.5]
[1754900277309,15.10621557,183.27,183.23,44.08854351]
[1754900279018,20.56269265,183.27,183.23,43.39854351]
[1754900279192,20.74269265,183.27,183.23,43.39854351]
[1754900279817,20.74269265,183.27,183.23,38.5]
[1754900279989,20.74269265,183.27,183.23,43.39854351]
[1754900280315,21.24474645,183.27,183.23,39.19]
[1754900280613,21.24474645,183.27,183.24,4.89854351]
[1754900280790,20.56269265,183.27,183.25,38.52]
[1754900282403,15.10621557,183.27,183.25,43.41854351]
[1754900283822,15.96826937,183.27,183.26,38.52]
[1754900284006,15.78826937,183.27,183.26,38.52]
[1754900284818,21.24469977,183.27,183.24,4.89854351]
[1754900285115,21.24469977,183.27,183.25,38.5]
[1754900289824,21.24469977,183.27,183.25,39.19]
[1754900290001,20.56264597,183.27,183.25,39.19]
[1754900290439,20.56264597,183.27,183.25,44.08854351]
[1754900290602,20.56264597,183.27,183.25,39.19]
[1754900290802,20.56264597,183.27,183.25,38.5]
[1754900291011,21.24469977,183.27,183.25,38.5]
[1754900292299,20.56264597,183.27,183.25,39.19]
[1754900293211,20.56264597,183.27,183.25,38.5]
[1754900293526,20.56264597,183.27,183.25,43.39854351]
[1754900294024,20.56264597,183.27,183.25,38.5]
[1754900294401,20.56264597,183.27,183.25,43.39854351]
[1754900295004,20.56264597,183.27,183.25,38.5]
[1754900296119,15.10621557,183.26,183.25,38.5]
[1754900296508,15.10621557,183.26,183.25,43.39854351]
[1754900296708,15.10621557,183.26,183.25,44.08854351]
[1754900297518,15.10621557,183.26,183.25,39.19]
[1754900297705,15.10621557,183.26,183.25,44.08854351]
[1754900298942,0.03,183.29,183.25,44.08854351]
[1754900299136,0.03,183.29,183.28,4.89854351]
[1754900299639,0.03,183.29,183.28,5.58854351]
[1754900299851,0.03,183.29,183.28,11.0446762]
[1754900300643,0.03,183.29,183.28,15.94321971]
[1754900300819,0.03,183.29,183.28,11.0446762]
[1754900302335,0.03,183.29,183.28,15.94321971]
[1754900302831,0.03,183.29,183.28,11.0446762]
[1754900303433,13.56660502,183.34,183.28,6.14613269]
[1754900303730,14.2483984,183.34,183.32,4.89854351]
[1754900303933,14.2483984,183.34,183.32,43.39854351]
[1754900304115,5.45464462,183.33,183.32,43.39854351]
[1754900304831,5.45464462,183.33,183.32,38.5]
[1754900305212,5.63464462,183.33,183.32,38.5]
[1754900305408,20.74086019,183.33,183.32,38.5]
[1754900305624,20.56086019,183.33,183.32,38.5]
[1754900305824,20.56086019,183.33,183.32,4.89854351]
[1754900306006,15.10621557,183.33,183.32,4.89854351]
[1754900306209,15.10621557,183.33,183.31,38.5]
[1754900306408,15.10621557,183.33,183.32,4.89854351]
[1754900307516,15.10621557,183.33,183.32,5.60854351]
[1754900310127,0.68164467,183.38,183.32,5.60854351]
[1754900310332,15.10621557,183.37,183.36,4.89854351]
[1754900310844,15.10621557,183.37,183.35,43.37854351]
[1754900311419,0.1,183.39,183.36,4.89854351]
[1754900311641,15.10621557,183.38,183.35,38.48]
[1754900311850,15.10621557,183.4,183.37,4.89854351]
[1754900312041,15.10621557,183.4,183.39,4.89854351]
[1754900312440,15.10621557,183.4,183.38,43.37854351]
[1754900312743,20.55885257,183.4,183.38,43.37854351]
[1754900313436,20.55885257,183.4,183.38,38.48]
[1754900313640,15.10621557,183.38,183.37,38.48]
[1754900314148,20.55937294,183.38,183.37,38.48]
[1754900314355,20.73937294,183.38,183.35,38.48]
[1754900314537,15.10621557,183.36,183.35,38.48]
[1754900315738,20.00475908,183.36,183.32,39.19]
[1754900315947,0.6817562,183.35,183.33,0.71]
[1754900316248,15.10621557,183.36,183.33,5.60854351]
[1754900316425,20.5602014,183.36,183.33,0.71]
[1754900316629,0.6817562,183.35,183.33,5.60854351]
[1754900316829,0.6817562,183.35,183.33,4.89854351]
[1754900317139,20.00475908,183.34,183.29,0.71]
[1754900317341,15.10621557,183.32,183.29,4.89854351]
[1754900317654,15.10621557,183.32,183.3,5.60854351]
[1754900317857,20.18475908,183.34,183.3,4.89854351]
[1754900318041,15.10621557,183.32,183.3,4.89854351]
[1754900318238,15.10621557,183.32,183.31,0.71]
[1754900318443,20.56115774,183.32,183.31,5.60854351]
[1754900319045,20.56115774,183.32,183.31,0.71]
[1754900319237,20.56115774,183.32,183.31,5.60854351]
[1754900319854,20.56115774,183.32,183.31,4.89854351]
[1754900320256,20.56115774,183.32,183.31,5.60854351]
[1754900320466,15.10621557,183.32,183.31,5.60854351]
[1754900320860,15.78808334,183.32,183.26,5.45666166]
[1754900321036,15.78808334,183.32,183.29,5.60854351]
[1754900321365,15.78808334,183.32,183.27,38.48]
[1754900321366,15.78808334,183.32,183.28,4.89854351]
[1754900321664,15.78808334,183.32,183.28,5.60854351]
[1754900322038,15.10621557,183.3,183.29,4.89854351]
[1754900323164,15.78815774,183.3,183.28,0.71]
[1754900323357,15.10621557,183.3,183.28,5.60854351]
[1754900323658,15.10621557,183.3,183.29,4.89854351]
[1754900326169,6.13655975,183.33,183.29,4.89854351]
[1754900326463,15.10621557,183.35,183.32,4.89854351]
[1754900326669,15.10621557,183.35,183.34,4.89854351]
[1754900327454,20.5602652,183.35,183.34,4.89854351]
[1754900329152,15.10621557,183.35,183.34,4.89854351]
[1754900329352,0.03,183.36,183.34,5.60854351]
[1754900329654,0.03,183.36,183.35,5.60854351]
[1754900330881,0.03,183.36,183.35,11.06259314]
[1754900334869,0.03,183.36,183.35,0.71]
[1754900335057,0.03,183.36,183.35,5.60854351]
[1754900335747,0.03,183.36,183.35,11.06259314]
[1754900336071,0.03,183.36,183.35,5.60854351]
[1754900336569,0.03,183.36,183.35,11.06259314]
[1754900340651,0.03,183.4,183.35,37.06259314]
[1754900340867,0.03,183.4,183.39,9.79708702]
[1754900341153,0.03,183.4,183.39,48.25708702]
[1754900341349,0.03,183.4,183.39,48.91708702]
[1754900341774,0.03,183.4,183.39,54.36994704]
[1754900342377,0.03,183.44,183.39,54.36994704]
[1754900342563,0.03,183.44,183.43,4.89854351]
[1754900342759,0.03,183.44,183.43,43.35854351]
[1754900343080,0.03,183.44,183.43,44.01854351]
[1754900343272,0.03,183.44,183.43,39.12]
[1754900343469,0.03,183.44,183.43,44.01854351]
[1754900343871,0.03,183.44,183.43,49.47021444]
[1754900344064,0.03,183.44,183.43,44.01854351]
[1754900345852,0.03,183.44,183.43,38.46]
[1754900346076,0.03,183.44,183.43,43.35854351]
[1754900346283,0.03,183.44,183.43,44.01854351]
[1754900347284,0.03,183.44,183.43,5.55854351]
[1754900347454,0.03,183.44,183.43,43.99854351]
[1754900351467,0.03,183.44,183.43,49.45021444]
[1754900351682,0.03,183.46,183.43,49.45021444]
[1754900351891,0.03,183.46,183.45,4.89854351]
[1754900352091,0.03,183.46,183.45,43.33854351]
[1754900352389,0.03,183.46,183.45,43.99854351]
[1754900353202,0.03,183.46,183.45,4.89854351]
[1754900353489,0.03,183.46,183.45,43.99854351]
[1754900353693,0.03,183.46,183.45,49.44962009]
[1754900354072,0.03,183.46,183.45,43.99854351]
[1754900354693,0.03,183.46,183.45,26.0]
[1754900354997,0.03,183.46,183.45,69.33854351]
[1754900355197,0.03,183.46,183.45,69.99854351]
[1754900356078,15.10621557,183.51,183.42,2.78789417]
[1754900356279,0.89119891,183.5,183.47,4.89854351]
[1754900356494,0.21,183.49,183.47,4.89854351]
[1754900356694,15.10621557,183.49,183.48,43.31854351]
[1754900357082,15.99726602,183.54,183.48,43.97854351]
[1754900357284,15.10621557,183.52,183.5,4.89854351]
[1754900357488,15.78737735,183.51,183.5,4.89854351]
[1754900357706,15.10621557,183.51,183.5,4.89854351]
[1754900358295,15.31621557,183.51,183.49,4.89854351]
[1754900358485,0.68119891,183.5,183.49,4.89854351]
[1754900358686,0.21,183.51,183.49,4.89854351]
[1754900358897,0.68119891,183.5,183.48,38.42]
[1754900359095,0.68119891,183.5,183.49,4.89854351]
[1754900359299,6.34079019,183.5,183.48,43.31854351]
[1754900360177,15.10621557,183.49,183.46,4.89854351]
[1754900360493,15.10621557,183.47,183.46,4.89854351]
[1754900360794,0.89127316,183.48,183.46,4.89854351]
[1754900361386,6.13158846,183.48,183.46,4.89854351]
[1754900362999,15.10621557,183.48,183.47,4.89854351]
[1754900363410,20.55640087,183.48,183.47,4.89854351]
[1754900364104,15.10621557,183.47,183.45,38.42]
[1754900364281,15.10621557,183.47,183.46,4.89854351]
[1754900364481,15.10621557,183.47,183.46,0.66]
[1754900364705,15.10621557,183.48,183.46,5.55854351]
[1754900364895,0.89112467,183.52,183.46,0.66]
[1754900365207,20.55550988,183.51,183.49,4.89854351]
[1754900365405,0.68119891,183.5,183.49,4.89854351]
[1754900365707,20.55550988,183.51,183.49,4.89854351]
[1754900366211,15.10621557,183.51,183.5,4.89854351]
[1754900368391,15.13621557,183.51,183.5,4.89854351]
[1754900370309,15.13621557,183.51,183.48,38.42]
[1754900370513,38.45,183.55,183.5,4.89854351]
[1754900370514,14.05786487,183.53,183.5,4.89854351]
[1754900370694,14.05786487,183.53,183.52,4.89854351]
[1754900371092,14.05786487,183.53,183.51,0.66]
[1754900371296,19.50663776,183.53,183.52,4.89854351]
[1754900371503,19.50656535,183.53,183.52,4.89854351]
[1754900374402,14.05786487,183.53,183.52,4.89854351]
[1754900374918,19.50656535,183.53,183.52,4.89854351]
[1754900376536,19.71656535,183.53,183.5,44.89854351]
[1754900376703,15.10621557,183.51,183.5,44.89854351]
[1754900376912,20.55550988,183.51,183.5,44.89854351]
[1754900377598,15.10621557,183.51,183.5,45.55854351]
[1754900378717,5.44929431,183.51,183.5,44.89854351]
[1754900378922,20.55550988,183.51,183.5,44.89854351]
[1754900379224,20.55550988,183.51,183.5,40.66]
[1754900379408,20.55550988,183.51,183.5,44.89854351]
[1754900380204,15.10621557,183.51,183.5,45.55854351]
[1754900380702,15.10621557,183.51,183.5,83.97854351]
[1754900381100,20.55550988,183.51,183.5,83.97854351]
[1754900381303,15.10621557,183.51,183.5,83.97854351]
[1754900384602,15.10621557,183.51,183.5,79.08]
[1754900384839,15.10621557,183.51,183.5,83.31854351]
[1754900385326,15.10621557,183.51,183.5,83.97854351]
[1754900387428,20.55550988,183.51,183.5,78.42]
[1754900387930,20.76550988,183.51,183.5,40.0]
[1754900388219,20.55550988,183.51,183.5,40.0]
[1754900388410,21.23667166,183.51,183.5,40.0]
[1754900389421,20.55550988,183.51,183.5,40.0]
[1754900390522,20.55550988,183.51,183.5,45.55854351]
[1754900391606,20.55550988,183.51,183.5,40.0]
[1754900393811,20.55550988,183.51,183.5,44.89854351]
[1754900394020,20.55550988,183.51,183.5,40.0]
[1754900394334,20.55550988,183.51,183.5,78.42]
[1754900395600,20.55550988,183.51,183.5,83.99854351]
[1754900396637,20.55550988,183.51,183.5,79.1]
[1754900396931,20.55550988,183.51,183.5,83.99854351]
[1754900397319,20.55550988,183.51,183.5,79.1]
[1754900398029,20.55550988,183.51,183.5,83.99854351]
[1754900398535,20.55550988,183.51,183.5,40.68]
[1754900398840,20.55550988,183.51,183.5,83.97854351]
[1754900399608,15.10621557,183.51,183.5,83.97854351]
[1754900400003,20.55550988,183.51,183.5,83.97854351]
[1754900401409,15.10621557,183.51,183.5,83.97854351]
[1754900407326,20.55550988,183.51,183.5,78.4]
[1754900407729,20.55550988,183.51,183.5,83.29854351]
[1754900408238,20.55550988,183.51,183.5,78.4]
[1754900408943,20.55550988,183.51,183.5,40.0]
[1754900409243,20.55550988,183.51,183.5,78.4]
[1754900411734,20.55550988,183.51,183.5,40.0]
[1754900411926,20.55550988,183.51,183.5,78.4]
[1754900414052,20.55550988,183.51,183.5,40.0]
[1754900415122,20.55550988,183.51,183.5,40.68]
[1754900415637,20.55550988,183.51,183.5,40.0]
[1754900420542,20.55550988,183.51,183.5,40.68]
[1754900423048,25.45405339,183.51,183.5,40.0]
[1754900423247,25.45405339,183.51,183.5,12.3510959]
[1754900423442,25.66405339,183.51,183.5,12.3510959]
[1754900423756,25.45405339,183.51,183.5,12.3510959]
[1754900423962,20.55550988,183.51,183.5,12.3510959]
[1754900424151,15.10621557,183.51,183.5,13.0610959]
[1754900424347,15.10621557,183.51,183.5,17.95963941]
[1754900425158,20.55550988,183.51,183.5,17.95963941]
[1754900425358,15.10621557,183.51,183.5,17.95963941]
[1754900425743,15.10621557,183.51,183.5,13.0610959]
[1754900425950,15.10621557,183.51,183.5,17.95963941]
[1754900426958,20.55550988,183.51,183.5,13.0610959]
[1754900427254,20.55550988,183.51,183.5,56.35963941]
[1754900427463,15.10621557,183.51,183.5,56.35963941]
[1754900429158,15.10621557,183.51,183.5,51.4610959]
[1754900429678,15.10621557,183.51,183.5,56.35963941]
[1754900430041,0.03,183.55,183.5,56.35963941]
[1754900430376,0.03,183.55,183.54,4.89854351]
[1754900430673,0.03,183.55,183.54,43.29854351]
[1754900430863,21.26533569,183.55,183.53,4.89854351]
[1754900431045,21.26533569,183.55,183.54,38.38]
[1754900431246,21.26533569,183.55,183.54,43.98854351]
[1754900431545,20.58432235,183.55,183.54,43.98854351]
[1754900431858,15.13621557,183.55,183.54,43.98854351]
[1754900432665,15.13621557,183.55,183.54,39.09]
[1754900432869,21.26533569,183.55,183.54,38.38]
[1754900433056,21.26535995,183.55,183.53,4.89854351]
[1754900433260,21.26535995,183.55,183.54,38.38]
[1754900434259,21.26535995,183.55,183.53,5.60854351]
[1754900434463,15.10621557,183.54,183.5,17.80067311]
[1754900434661,15.10621557,183.54,183.53,4.89854351]
[1754900434980,15.10621557,183.54,183.53,43.27854351]
[1754900435178,15.10621557,183.54,183.53,43.98854351]
[1754900435747,0.71101334,183.55,183.51,0.71]
[1754900435967,6.15916351,183.55,183.52,39.09]
[1754900436255,15.10621557,183.54,183.51,5.60854351]
[1754900436557,11.05770702,183.55,183.5,12.3510959]
[1754900436558,20.00475908,183.52,183.5,12.3510959]
[1754900436874,20.68592086,183.51,183.5,12.3510959]
[1754900437068,26.13521517,183.51,183.5,12.3510959]
[1754900437656,21.23667166,183.51,183.5,12.3510959]
[1754900441073,26.13521517,183.51,183.5,12.3510959]
[1754900441779,21.23667166,183.51,183.5,12.3510959]
[1754900443186,26.13521517,183.51,183.5,12.3510959]
[1754900443656,21.23667166,183.51,183.5,12.3510959]
[1754900444580,21.23667166,183.51,183.5,13.0610959]
[1754900444969,21.23667166,183.51,183.5,12.3510959]
[1754900447467,21.23667166,183.51,183.5,13.0610959]
[1754900448887,15.10621557,183.51,183.5,17.95963941]
[1754900449070,20.55550988,183.51,183.5,17.95963941]
[1754900449274,15.10621557,183.51,183.5,17.95963941]
[1754900449780,20.55550988,183.51,183.5,17.95963941]
[1754900450379,15.10621557,183.51,183.5,17.95963941]
[1754900450590,15.10621557,183.51,183.5,56.33963941]
[1754900450763,5.44848723,183.54,183.5,56.33963941]
[1754900451082,15.10621557,183.53,183.51,0.71]
[1754900451981,5.4781754,183.55,183.51,0.71]
[1754900452182,15.10621557,183.54,183.53,4.89854351]
[1754900452381,15.10621557,183.54,183.53,43.99854351]
[1754900452760,15.10621557,183.54,183.53,39.1]
[1754900452962,5.44840361,183.54,183.53,39.1]
[1754900453190,5.44840361,183.54,183.53,43.99854351]
[1754900453685,6.1592047,183.55,183.53,43.99854351]
[1754900453989,20.58440693,183.55,183.54,5.61854351]
[1754900455587,15.13621557,183.55,183.54,5.61854351]
[1754900456777,20.58432235,183.55,183.54,5.61854351]
[1754900457992,15.13621557,183.55,183.54,5.61854351]
[1754900458398,15.13621557,183.55,183.54,0.72]
[1754900458584,15.13621557,183.55,183.54,5.61854351]
[1754900459298,20.58432235,183.55,183.54,5.61854351]
[1754900459906,20.58432235,183.55,183.54,0.72]
[1754900460082,20.58432235,183.55,183.54,5.61854351]
[1754900460990,20.58432235,183.55,183.53,38.38]
[1754900461175,20.55461918,183.54,183.53,38.38]
[1754900461503,5.47815115,183.55,183.53,43.99854351]
[1754900461706,5.47815115,183.55,183.53,39.1]
[1754900461903,5.47815115,183.55,183.51,0.72]
[1754900461904,15.78726602,183.54,183.51,0.72]
[1754900462207,0.21,183.53,183.5,12.4110959]
[1754900462500,15.10621557,183.51,183.5,12.4110959]
[1754900462692,15.10621557,183.51,183.5,13.1310959]
[1754900463103,20.55550988,183.51,183.5,13.1310959]
[1754900463603,20.55550988,183.51,183.5,18.02963941]
[1754900463899,20.55530788,183.52,183.5,18.02963941]
[1754900464478,15.10621557,183.52,183.51,0.72]
[1754900464681,15.10621557,183.52,183.51,5.61854351]
[1754900464881,20.55461918,183.54,183.51,5.61854351]
[1754900465085,15.10621557,183.52,183.51,5.61854351]
[1754900465479,0.03,183.55,183.51,43.97854351]
[1754900465480,15.10621557,183.54,183.51,43.97854351]
[1754900465684,15.10621557,183.54,183.52,5.61854351]
[1754900465885,15.10621557,183.54,183.53,0.72]
[1754900466705,15.10621557,183.54,183.53,5.61854351]
[1754900467220,20.55461918,183.54,183.53,0.72]
[1754900467517,20.55461918,183.54,183.52,4.89854351]